Cogmind - Beta 17 @@@ ROGUE MODE // 2026.06.26 @ 11:13:41 Player: teag2 Result: Destroyed by G-50 Soldier with Heavy Laser Performance ------------- Evolutions (5) 2500 Regions Visited (12) 2400 Robots Destroyed (88) 440 Value Destroyed (2974) 2974 Prototype IDs (7) 140 Alien Tech Used (0) 0 Bonus (552) 552 TOTAL SCORE: 9006 Bonus ------- High Alert Combat Kills 52 Entered DSFs 500 Cogmind --------- Core Integrity 0/1000 Matter 273/300 Energy 99/100 System Corruption 0% Temperature Cool (9) Movement Core (50) Location -5/Upper Caves Parts ------- > --- POWER (2) -------- (None) > --- PROPULSION (6) --- (None) > --- UTILITY (7) ------ Signal Interpreter System Shield > --- WEAPON (2) ------- (None) > --- INVENTORY (5) ---- Improved Cryofiber Web Advanced Weight Redist. System Hacking Suite Advanced System Restoration Module Advanced Field Recycling Unit (210) Peak State ------------ > --- POWER ------------ Light Nuclear Core Micro Nuclear Core > --- PROPULSION ------- Xenon Bombardment Thruster Nuclear Pulse Thruster Nuclear Pulse Thruster Nuclear Pulse Thruster Nuclear Pulse Array > --- UTILITY ---------- Signal Interpreter Hacking Suite Improved Hacking Suite Advanced Hacking Suite System Shield System Shield System Shield > --- WEAPON ----------- Variable Charge Gun Variable Charge Gun > --- INVENTORY -------- Improved Cryofiber Web Advanced Weight Redist. System Improved Trap Scanner Advanced System Restoration Module Advanced Field Recycling Unit [Rating: 76] Favorites ----------- Power Light Nuclear Core Engine Ion Engine Power Core Light Nuclear Core Propulsion Armored Treads Treads Armored Treads Leg Aluminum Leg Flight Unit Nuclear Pulse Thruster Utility System Shield Device ECM Suite Storage Large Storage Unit Processor Signal Interpreter Hackware System Shield Protection Light Armor Plating Weapon Heavy Assault Rifle Energy Gun Variable Charge Gun Energy Cannon Disruptor Cannon Ballistic Gun Heavy Assault Rifle Ballistic Cannon Flak Cannon Launcher Heavy Missile Launcher Special Weapon Mining Laser Impact Weapon Heavy Mace Build | -11 -10 -9 -9 -8 -7 -7 -7 -6 -6 -5 -5 -5 ------- Run | Yrd Mat Mat Min Mat Fac Was Fac Fac DSF Fac Upp Upp Slots Evolved 10 | . . 2 . 2 2 . . 2 . 2 . . Power 1 | . . . . . . . . . . 1 . . Propulsion 4 | . . . . 1 1 . . 1 . 1 . . Utility 5 | . . 2 . 1 1 . . 1 . . . . Weapon . | . . . . . . . . . . . . . Parts Attached 98 | 7 1 25 3 15 12 2 5 1 7 18 2 . Power 9 | 1 . 2 . 1 2 . . 1 . 2 . . Engine 2 | 1 . 1 . . . . . . . . . . Core 7 | . . 1 . 1 2 . . 1 . 2 . . Reactor . | . . . . . . . . . . . . . Propulsion 31 | 2 . 5 . 8 3 1 1 . 5 6 . . Treads 10 | 2 . 5 . 3 . . . . . . . . Leg 1 | . . . . 1 . . . . . . . . Wheel . | . . . . . . . . . . . . . Hover . | . . . . . . . . . . . . . Flight 20 | . . . . 4 3 1 1 . 5 6 . . Utility 35 | 2 1 7 2 4 5 1 4 . 2 6 1 . Device 15 | 1 . 1 1 1 2 1 3 . 1 3 1 . Storage 3 | 1 1 1 . . . . . . . . . . Processor 2 | . . 2 . . . . . . . . . . Hackware 9 | . . 2 . 1 2 . . . 1 3 . . Protection 6 | . . 1 1 2 1 . 1 . . . . . Artifact . | . . . . . . . . . . . . . Weapon 23 | 2 . 11 1 2 2 . . . . 4 1 . Energy Gun 7 | . . 1 . 1 1 . . . . 4 . . Energy Cannon 1 | . . . . . . . . . . . 1 . Ballistic Gun 7 | 2 . 5 . . . . . . . . . . Ballistic Cannon 3 | . . 3 . . . . . . . . . . Launcher 2 | . . . 1 . 1 . . . . . . . Special Weapon 1 | . . . . 1 . . . . . . . . Impact Weapon 2 | . . 2 . . . . . . . . . . Slashing Weapon . | . . . . . . . . . . . . . Piercing Weapon . | . . . . . . . . . . . . . Special Melee Weapon . | . . . . . . . . . . . . . Unidentified Prototypes 7 | . . 2 1 . 1 . 1 . . 2 . . Parts Lost 55 | . . 7 2 17 1 . 4 . 2 9 4 9 Power 7 | . . 1 . 2 . . 1 . . 1 1 1 Propulsion 17 | . . 2 . 6 . . 2 . . 3 1 3 Utility 17 | . . 2 1 4 . . 1 . 1 3 1 4 Weapon 14 | . . 2 1 5 1 . . . 1 2 1 1 Highest Loss Streak 11 | . . 2 1 8 1 . 4 . 2 4 2 11 To Critical Strikes . | . . . . . . . . . . . . . Average Backups 10 | 1 5 14 14 10 4 4 4 2 3 4 5 5 Power 1 | . 1 1 . . . 1 1 . . . . . Propulsion 2 | . 1 3 5 5 . 1 . . 1 . . . Utility 4 | . 1 5 5 4 2 2 2 2 1 2 5 5 Weapon 1 | . 1 3 1 . . . . . . . . . Tool/Special . | . . . . . . . . . . . . . Unused Backups 13 | . . 5 . . 2 . 1 . . 2 . 3 Power 1 | . . . . . 1 . . . . . . . Propulsion 2 | . . 2 . . . . . . . . . . Utility 5 | . . 1 . . . . 1 . . . . 3 Weapon 5 | . . 2 . . 1 . . . . 2 . . Tool/Special . | . . . . . . . . . . . . . Average Slot Usage (%) 88 | . 100 84 98 89 87 91 89 73 80 91 75 37 Engine 4 | . 14 9 . . . . . . . . . . Core 5 | . . 1 11 7 6 7 7 6 6 10 10 2 Treads 16 | . 28 21 22 23 . . . . . . . . Flight 7 | . . . . . 30 30 29 20 27 31 18 6 Device 4 | . 14 4 . . 11 7 6 6 7 4 5 3 Storage 8 | . 14 11 10 8 . . . . . . . . Processor 6 | . . 5 11 9 7 7 7 6 6 5 5 5 Hackware 13 | . . 8 11 17 21 23 23 20 21 28 28 16 Protection 3 | . . . 10 8 2 6 6 6 5 . . . Energy Gun 1 | . . . . 3 2 . . . . 7 1 . Ballistic Gun 10 | . 28 12 19 1 . . . . . . . . Ballistic Cannon 3 | . . 9 . . . . . . . . . . Launcher 1 | . . . 2 1 3 7 7 6 5 . . . Peak Build Rating 76 | 7 8 22 32 28 37 38 39 35 56 76 67 52 Average Rating 25 | 4 7 16 21 24 33 36 36 35 46 66 60 25 On Entrance 29 | . 7 8 22 21 14 36 36 33 35 48 67 52 Avg Prop Armor Cover (%) 6 | . . 9 . . 16 . . . . 4 9 . Naked Turns . | . . . . . . . . . . . . . Heaviest Build 40 | 15 30 40 34 34 20 20 21 20 36 30 23 17 Greatest Support 60 | 40 40 43 40 60 22 22 26 26 39 36 27 27 Greatest Overweight (x) 12 | . . 12 . . 1 . . . . 1 . . Average Overweight (x) . | . . . . . . . . . . . . . Largest Inventory Capacity 15 | 8 15 15 15 15 5 5 5 5 5 5 5 5 Average Capacity 11 | 7 9 15 14 14 5 5 5 5 5 5 5 5 Most Carried 15 | 5 9 15 15 15 5 5 5 2 5 5 5 5 Average Carried 10 | 2 5 14 14 10 4 4 4 2 4 4 5 5 Final Capacity 15 | 8 15 15 15 5 5 5 5 5 5 5 5 5 Final Carried 15 | 2 9 15 15 5 5 5 3 2 5 5 5 5 Class Distribution -------------------- 51% | Mutant 18% | Hacker-Mutant 17% | Hacker-Sprinter 11% | Scavenger-Mutant Dominant Class ---------------- Mutant | -10/Materials Mutant | -9/Materials Scavenger-Mutant | -9/Mines Hacker-Mutant | -8/Materials Hacker-Sprinter | -7/Factory Hacker-Sprinter | -7/Waste Hacker-Sprinter | -7/Factory Hacker-Sprinter | -6/Factory Hacker-Sprinter | -6/DSF Hacker-Sprinter | -5/Factory Hacker-Mutant | -5/Upper Caves Hacker-Mutant | -5/Upper Caves Resources | -11 -10 -9 -9 -8 -7 -7 -7 -6 -6 -5 -5 -5 ----------- Run | Yrd Mat Mat Min Mat Fac Was Fac Fac DSF Fac Upp Upp Matter Collected 2355 | 262 160 993 174 257 177 . 116 . 5 101 48 62 Remotely . | . . . . . . . . . . . . . Salvage Created 2969 | 22 273 951 162 870 236 256 53 . . 146 . . Parts 156 | 4 15 65 15 20 17 5 6 . . 9 . . Haulers Intercepted 3 | . . 3 . . . . . . . . . . Recyclers Shooed 5 | . 1 4 . . . . . . . . . . Parts Field Recycled 6 | . . . . . . . . . . 6 . . Retrieved Matter 276 | . . . . . . . . . . 276 . . Parts Self-Destructed . | . . . . . . . . . . . . . Prevented . | . . . . . . . . . . . . . Parts Restored . | . . . . . . . . . . . . . Kills | -11 -10 -9 -9 -8 -7 -7 -7 -6 -6 -5 -5 -5 ------- Run | Yrd Mat Mat Min Mat Fac Was Fac Fac DSF Fac Upp Upp Combat Hostiles Destroyed 70 | . 5 25 6 20 7 1 4 . . 2 . . Melee 4 | . . . . 4 . . . . . . . . Guns 20 | . 5 6 5 3 . . . . . 1 . . Cannons 19 | . . 19 . . . . . . . . . . AOE 14 | . . . 1 . 7 1 4 . . 1 . . Classes Destroyed 14 | 1 2 5 . 3 2 1 . . . . . . Worker 1 | . . 1 . . . . . . . . . . Builder 3 | . . . . 1 2 . . . . . . . Tunneler 2 | 1 . . . . 1 . . . . . . . Hauler 3 | . . 3 . . . . . . . . . . Recycler 2 | . . 1 . . 1 . . . . . . . Operator 2 | . . . . . 1 . . . . 1 . . Watcher 5 | . 2 2 . . . . . . . 1 . . Swarmer 20 | . . 8 4 . 4 . 4 . . . . . Grunt 29 | . 5 9 . 14 1 . . . . . . . Duelist 1 | . . . . 1 . . . . . . . . Sentry 14 | . . 8 2 3 1 . . . . . . . Hunter 2 | . . . . 2 . . . . . . . . Programmer 3 | . . . . . 1 . . . . 2 . . Compactor 1 | . . . . . . 1 . . . . . . Best Kill Streak 7 | 1 3 7 4 5 6 1 4 . . 1 . . Combat Bots Only 7 | . 2 7 4 5 4 1 4 . . 1 . . Max Kills in Single Turn 5 | 1 1 2 1 1 5 1 4 . . 1 . . Gunslinging . | . . . . . . . . . . . . . Exploded 4 | . . . 1 . 3 1 4 . . 1 . . Melee 1 | . . . . 1 . . . . . . . . Uniques/NPCs Destroyed . | . . . . . . . . . . . . . Combat | -11 -10 -9 -9 -8 -7 -7 -7 -6 -6 -5 -5 -5 -------- Run | Yrd Mat Mat Min Mat Fac Was Fac Fac DSF Fac Upp Upp Hostile Shots Fired 837 | . 21 148 47 235 40 1 77 . 4 80 34 150 Missed 325 | . 7 44 7 66 17 1 45 . 1 41 19 77 Hits 512 | . 14 104 40 169 23 . 32 . 3 39 15 73 Projectile 512 | . 14 104 40 169 23 . 32 . 3 39 15 73 Critical Strikes 17 | . . 7 . 9 . . . . . . . 1 Damage Taken 7715 | . 170 1681 532 2608 187 30 272 . 171 724 236 1104 Core 1841 | . 43 183 70 452 29 . 50 . . 133 74 807 Absorbed by Shields 28 | . . . . . 28 . . . . . . . Core Remaining (%) 70 | 100 82 . 36 17 . . 88 . 100 . . . Volleys Fired 170 | 2 25 73 15 24 9 1 1 . . 20 . . Largest 2 | 2 2 2 2 2 1 1 1 . . 2 . . Hottest 150 | 40 40 74 53 100 39 39 39 . . 150 . . Shots Fired 290 | 3 50 145 31 27 9 1 2 . . 22 . . Gun 189 | 3 50 64 30 20 . . . . . 22 . . Cannon 81 | . . 81 . . . . . . . . . . Launcher 17 | . . . 1 4 9 1 2 . . . . . Special 3 | . . . . 3 . . . . . . . . Kinetic 242 | 3 50 145 30 14 . . . . . . . . Thermal 31 | . . . . 9 . . . . . 22 . . Explosive 17 | . . . 1 4 9 1 2 . . . . . Electromagnetic . | . . . . . . . . . . . . . Robot Hit Streak 9 | 2 7 7 9 7 2 . . . . 4 . . Robot Miss Streak 13 | . 3 13 4 3 1 . . . . 2 . . Penetration Max . | . . . . . . . . . . . . . Secondary Targets . | . . . . . . . . . . . . . Shots Hit Robots 219 | 2 29 97 21 55 2 . . . . 13 . . Core Hits 163 | 1 13 91 8 16 21 2 5 . . 6 . . Critical Kills 1 | . . . . 1 . . . . . . . . Critical Parts Destroyed 10 | . . . . 10 . . . . . . . . Critical Strikes 12 | . . . . 11 . . . . . 1 . . Burn 1 | . . . . . . . . . . 1 . . Smash 11 | . . . . 11 . . . . . . . . Melee Attacks 54 | . . 1 . 53 . . . . . . . . Impact 54 | . . 1 . 53 . . . . . . . . Slashing . | . . . . . . . . . . . . . Piercing . | . . . . . . . . . . . . . Sneak Attacks 1 | . . . . 1 . . . . . . . . Combat Hostiles . | . . . . . . . . . . . . . Follow-up Attacks . | . . . . . . . . . . . . . Damage Inflicted 6605 | 29 370 1745 329 1955 1171 358 224 . . 414 . 10 Guns 1716 | 29 370 511 304 229 . . . . . 273 . . Cannons 1196 | . . 1196 . . . . . . . . . . Explosions 2144 | . . 38 25 187 1171 358 224 . . 141 . . Melee 1515 | . . . . 1515 . . . . . . . . Ramming 10 | . . . . . . . . . . . . 10 Kinetic 2536 | 29 370 1707 304 126 . . . . . . . . Thermal 803 | . . . . 127 262 . . . . 414 . . Explosive 1671 | . . . 25 187 877 358 224 . . . . . Electromagnetic 70 | . . 38 . . 32 . . . . . . . Impact 1515 | . . . . 1515 . . . . . . . . Slashing . | . . . . . . . . . . . . . Piercing . | . . . . . . . . . . . . . Highest Corruption 11 | . . 11 11 . 1 10 10 . . 2 2 . Average Corruption 9 | . . 10 11 . 1 8 8 . . 1 1 . Corruption Purged 5 | . . . . . . . 3 . . . 2 . Corruption Blocked . | . . . . . . . . . . . . . Effects 120 | . . 80 25 . 2 5 4 . . 4 . . Message Errors 33 | . . 20 6 . 1 3 1 . . 2 . . Matter Fused 14 | . . 9 2 . . . 2 . . 1 . . Heat Flow Errors 18 | . . 15 2 . 1 . . . . . . . Energy Discharges 14 | . . 6 8 . . . . . . . . . Parts Rejected 1 | . . 1 . . . . . . . . . . Data Loss (minor) 12 | . . 6 5 . . . . . . 1 . . Data Loss (major) 9 | . . 9 . . . . . . . . . . Misfires 8 | . . 5 2 . . . 1 . . . . . Alerts 2 | . . 2 . . . . . . . . . . Misdirections 4 | . . 2 . . . 2 . . . . . . Weapon Failures 5 | . . 5 . . . . . . . . . . Overload Shots . | . . . . . . . . . . . . . Overflow Damage 684 | . . 1 . 614 3 . . . . 66 . . Projectiles 17 | . . 1 . 16 . . . . . . . . Explosions 69 | . . . . . 3 . . . . 66 . . Melee 598 | . . . . 598 . . . . . . . . Knockbacks 42 | . . 33 . 9 . . . . . . . . Impact 8 | . . . . 8 . . . . . . . . Kinetic 31 | . . 31 . . . . . . . . . . Secondary 3 | . . 2 . 1 . . . . . . . . Self-Inflicted Damage 210 | . . 148 24 34 . . . . . . . 4 Shots 4 | . . 2 1 1 . . . . . . . . Rammed 3 | . . . . . . . . . . . . 3 Targets Rammed 3 | . . . . . . . . . . . . 3 Kicked . | . . . . . . . . . . . . . Crushed . | . . . . . . . . . . . . . Highest Temperature 342 | . 3 260 249 156 215 6 19 . . 342 7 . Average Temperature 92 | . 2 66 69 63 84 4 5 . . 136 7 . Received Heat Transfer 2256 | . 93 432 117 1359 18 . 75 . . 108 27 27 Effects 8 | . . . . . . . . . . 8 . . Energy Bleed 2 | . . . . . . . . . . 2 . . Interference 4 | . . . . . . . . . . 4 . . Short Circuit 1 | . . . . . . . . . . 1 . . Damage (minor) 1 | . . . . . . . . . . 1 . . Siege Activations . | . . . . . . . . . . . . . Martial Activations . | . . . . . . . . . . . . . Shielding Activations . | . . . . . . . . . . . . . Robots Disrupted 1 | . . . . . 1 . . . . . . . Combat Hostiles 1 | . . . . . 1 . . . . . . . Robots Corrupted 14 | . . . . 14 . . . . . . . . Combat Hostiles 13 | . . . . 13 . . . . . . . . Parts Fried 17 | . . . . 17 . . . . . . . . Impact Corruptions 26 | . . . . 26 . . . . . . . . Robots Melted . | . . . . . . . . . . . . . Combat Hostiles . | . . . . . . . . . . . . . Parts Melted 1 | . . . . . . . . . . 1 . . Heat Transferred 1077 | . . . . 272 200 . . . . 605 . . Parts Sabotaged . | . . . . . . . . . . . . . Parts Stolen . | . . . . . . . . . . . . . Parts Stripped . | . . . . . . . . . . . . . Power Chain Reactions . | . . . . . . . . . . . . . Alert | -11 -10 -9 -9 -8 -7 -7 -7 -6 -6 -5 -5 -5 ------- Run | Yrd Mat Mat Min Mat Fac Was Fac Fac DSF Fac Upp Upp Maximum Alert Level 2 | . . 1 . 1 2 1 1 . . . . . Low Security (%) 89 | 100 100 90 100 97 55 . 52 100 100 100 . . Level 1 7 | . . 9 . 2 3 100 47 . . . . . Level 2 3 | . . . . . 41 . . . . . . . Level 3 . | . . . . . . . . . . . . . Level 4 . | . . . . . . . . . . . . . Level 5 . | . . . . . . . . . . . . . High Security . | . . . . . . . . . . . . . Max Security . | . . . . . . . . . . . . . Peak Influence 665 | 5 75 243 90 203 665 232 223 104 75 172 . . Initial 232 | . . . 21 3 73 232 140 104 75 28 . . Average 88 | . 20 78 15 124 289 214 177 104 70 66 . . Influence Increases 3482 | 5 144 821 140 618 832 8 173 4 . 452 30 255 Destroy 0b10 Robot/C 1380 | . 100 500 120 400 140 . 80 . . 40 . . Destroy 0b10 Robot/NC 85 | 5 10 35 . 5 25 . . . . 5 . . Destroy Leader 346 | . 24 140 10 100 40 . 10 . . 22 . . Allied During Kill 4 | . . . . 4 . . . . . . . . Successful Hack 156 | . 10 42 . 5 29 . 10 4 . 56 . . Disable Machine 315 | . . 60 . 15 210 . . . . 30 . . Destroy Structure 236 | . . 29 10 29 103 8 13 . . 44 . . Partial Spotted 30 | . . . . . 15 . 15 . . . . . Lose Combat Pursuer 930 | . . 15 . 60 270 . 45 . . 255 30 255 Influence Decreases 3327 | 5 144 766 185 465 330 473 160 109 53 335 194 108 Entered New Map 859 | . . . 34 7 90 433 60 109 33 27 64 2 Time Decay 1718 | 5 144 536 131 288 190 40 60 . . 194 90 40 Lost Part 506 | . . 70 20 170 10 . 40 . 20 70 40 66 Lost Ally 50 | . . 10 . . 40 . . . . . . . Purge Threat 194 | . . 150 . . . . . . . 44 . . Squads Dispatched 13 | . 1 1 . 3 2 . 1 . . 5 . . Investigation 3 | . 1 1 . 1 . . . . . . . . Extermination 3 | . . . . . 1 . . . . 2 . . Reinforcement 7 | . . . . 2 1 . 1 . . 3 . . Assault . | . . . . . . . . . . . . . Garrison . | . . . . . . . . . . . . . Intercept . | . . . . . . . . . . . . . Searches Triggered . | . . . . . . . . . . . . . Construction Impeded 1 | . . . . 1 . . . . . . . . Haulers Reinforced . | . . . . . . . . . . . . . Active Scanning Responses . | . . . . . . . . . . . . . Cargo Convoy Interrupts . | . . . . . . . . . . . . . Stealth | -11 -10 -9 -9 -8 -7 -7 -7 -6 -6 -5 -5 -5 --------- Run | Yrd Mat Mat Min Mat Fac Was Fac Fac DSF Fac Upp Upp Distress Signals 14 | . 1 4 . 3 4 . 1 . . 1 . . Communications Jammed . | . . . . . . . . . . . . . Distress Signals . | . . . . . . . . . . . . . Times Spotted 201 | . 12 34 6 36 23 5 13 . 1 36 8 27 Peak Tracking Total 14 | . 3 8 4 9 10 5 8 . 1 9 5 14 Tactical Retreats 27 | . . 1 . 2 9 . 1 . . 8 2 4 Traps | -11 -10 -9 -9 -8 -7 -7 -7 -6 -6 -5 -5 -5 ------- Run | Yrd Mat Mat Min Mat Fac Was Fac Fac DSF Fac Upp Upp Traps Triggered 5 | . 1 1 . 1 1 . 1 . . . . . Indirectly . | . . . . . . . . . . . . . Trap Hack Attempts . | . . . . . . . . . . . . . Triggered . | . . . . . . . . . . . . . Disarmed . | . . . . . . . . . . . . . Reprogrammed . | . . . . . . . . . . . . . Reused . | . . . . . . . . . . . . . Traps Extracted . | . . . . . . . . . . . . . Installed . | . . . . . . . . . . . . . Triggered . | . . . . . . . . . . . . . Objects Rigged 13 | . . . . . 10 . . . . 3 . . Exploded 4 | . . . . . 3 . . . . 1 . . Machines | -11 -10 -9 -9 -8 -7 -7 -7 -6 -6 -5 -5 -5 ---------- Run | Yrd Mat Mat Min Mat Fac Was Fac Fac DSF Fac Upp Upp Machines Disabled 21 | . . 4 . 1 14 . . . . 2 . . Max in Single Turn 4 | . . 2 . 1 4 . . . . 2 . . Machines Repaired . | . . . . . . . . . . . . . Machines Dismantled . | . . . . . . . . . . . . . Machines Sabotaged . | . . . . . . . . . . . . . Overloaded Fab Kills . | . . . . . . . . . . . . . Hacking | -11 -10 -9 -9 -8 -7 -7 -7 -6 -6 -5 -5 -5 --------- Run | Yrd Mat Mat Min Mat Fac Was Fac Fac DSF Fac Upp Upp Machines Accessed 50 | . 7 14 1 2 9 . 3 1 . 13 . . Terminals 35 | . 4 12 . 2 7 . 1 1 . 8 . . Fabricators 4 | . . . . . 1 . . . . 3 . . Repair Stations 2 | . 1 . . . . . 1 . . . . . Recycling Units 5 | . 2 2 . . . . . . . 1 . . Scanalyzers 2 | . . . . . 1 . . . . 1 . . Garrison Access 1 | . . . . . . . 1 . . . . . Total Hacks 169 | . 16 48 1 10 27 . 8 1 . 58 . . Successful 86 | . 5 26 1 2 15 . 1 1 . 35 . . Failed 82 | . 11 22 . 8 11 . 7 . . 23 . . Catastrophic 11 | . 1 5 . 1 . . . . . 4 . . Database Lockouts 1 | . . . . . 1 . . . . . . . Manual 117 | . 11 39 . 10 23 . 4 . . 30 . . Terminals 133 | . 11 43 . 10 24 . 3 1 . 41 . . Fabricators 7 | . . . . . 1 . . . . 6 . . Repair Stations 5 | . 2 . . . . . 3 . . . . . Recycling Units 10 | . 3 5 . . . . . . . 2 . . Scanalyzers 11 | . . . . . 2 . . . . 9 . . Garrison Access 2 | . . . . . . . 2 . . . . . Terminal Hacks 28 | . 2 9 1 . 3 . . 1 . 12 . . Record 1 | . . . . . 1 . . . . . . . Robot Analysis 2 | . 1 1 . . . . . . . . . . Open Door 1 | . . . 1 . . . . . . . . . Open DSF 1 | . . . . . . . . 1 . . . . Branch Access Points 2 | . . 1 . . . . . . . 1 . . Emergency Access Points 1 | . . . . . . . . . . 1 . . Terminal Index 3 | . . 1 . . 1 . . . . 1 . . Fabricator Index 1 | . . . . . . . . . . 1 . . Recycling Unit Index 1 | . . 1 . . . . . . . . . . Scanalyzer Index 1 | . . . . . . . . . . 1 . . Alert Level 1 | . . . . . . . . . . 1 . . Unreport Threat 3 | . . 1 . . . . . . . 2 . . Locate Traps 2 | . 1 1 . . . . . . . . . . Recall Investigation 2 | . . 1 . . 1 . . . . . . . Recall Extermination 2 | . . . . . . . . . . 2 . . Recall Reinforcements 1 | . . . . . . . . . . 1 . . Hauler Manifests 3 | . . 2 . . . . . . . 1 . . Fabricator Hacks 4 | . . . . . 1 . . . . 3 . . Network Status 1 | . . . . . . . . . . 1 . . Build 3 | . . . . . 1 . . . . 2 . . Repair Station Hacks 1 | . . . . . . . 1 . . . . . Scan Component 1 | . . . . . . . 1 . . . . . Recycling Unit Hacks 8 | . 2 4 . . . . . . . 2 . . Process 2 | . . 1 . . . . . . . 1 . . Report Inventory 1 | . . 1 . . . . . . . . . . Retrieve Matter 2 | . . 1 . . . . . . . 1 . . Retrieve Components 3 | . 2 1 . . . . . . . . . . Scanalyzer 9 | . . . . . 1 . . . . 8 . . Insert Component 1 | . . . . . . . . . . 1 . . Analyze 1 | . . . . . . . . . . 1 . . Retrieve Study 7 | . . . . . 1 . . . . 6 . . Garrison Access Hacks . | . . . . . . . . . . . . . Unauthorized Hacks 36 | . 1 13 . 2 10 . . . . 10 . . Terminals 36 | . 1 13 . 2 10 . . . . 10 . . Track 3 | . . 2 . . . . . . . 1 . . Assimilate 6 | . . 1 . . 4 . . . . 1 . . Botnet 24 | . 1 9 . 2 5 . . . . 7 . . Detonate 2 | . . . . . 1 . . . . 1 . . Operators 1 | . . 1 . . . . . . . . . . Fabricators . | . . . . . . . . . . . . . Repair Stations . | . . . . . . . . . . . . . Recycling Units . | . . . . . . . . . . . . . Scanalyzers . | . . . . . . . . . . . . . Garrison Access . | . . . . . . . . . . . . . Data Cores Recovered 1 | . . . . . 1 . . . . . . . Used . | . . . . . . . . . . . . . Hacking Detections 39 | . 5 11 . 2 7 . 3 . . 11 . . Full Trace Events 1 | . . 1 . . . . . . . . . . Feedback Events . | . . . . . . . . . . . . . Feedback Blocked . | . . . . . . . . . . . . . Robot Schematics Acquired . | . . . . . . . . . . . . . Robots Built 2 | . . . . . . . . . . 2 . . Authchips . | . . . . . . . . . . . . . Time 40 | . . . . . . . . . . 40 . . Total Robot Build Rating 2 | . . . . . . . . . . 2 . . Part Schematics Acquired 1 | . . . . . . . . . . 1 . . Parts Built 4 | . . . . . 2 . . . . 2 . . Authchips . | . . . . . . . . . . . . . Time 99 | . . . . . 53 . . . . 46 . . Total Part Build Rating 30 | . . . . . 12 . . . . 18 . . Part Studies Acquired 7 | . . . . . 1 . . . . 6 . . Parts Repaired . | . . . . . . . . . . . . . Time . | . . . . . . . . . . . . . Parts Recycled . | . . . . . . . . . . . . . Recycled Matter 395 | . . 330 . . . . . . . 65 . . Retrieved Matter 535 | . . 470 . . . . . . . 65 . . Retrieved Components 15 | . 6 9 . . . . . . . . . . Parts Scanalyzed 1 | . . . . . . . . . . 1 . . Part Schematics Acquired 1 | . . . . . . . . . . 1 . . Parts Damaged . | . . . . . . . . . . . . . Bothacking | -11 -10 -9 -9 -8 -7 -7 -7 -6 -6 -5 -5 -5 ------------ Run | Yrd Mat Mat Min Mat Fac Was Fac Fac DSF Fac Upp Upp Used RIF Installer . | . . . . . . . . . . . . . Robots Hacked . | . . . . . . . . . . . . . Non-combat . | . . . . . . . . . . . . . Combat . | . . . . . . . . . . . . . Robot Hacks Applied . | . . . . . . . . . . . . . Relay Couplers Released . | . . . . . . . . . . . . . Fabnet Peak Effective % . | . . . . . . . . . . . . . Robots Rewired . | . . . . . . . . . . . . . Allies Hacked 1 | . . . . . 1 . . . . . . . Hacks Repelled . | . . . . . . . . . . . . . Allies | -11 -10 -9 -9 -8 -7 -7 -7 -6 -6 -5 -5 -5 -------- Run | Yrd Mat Mat Min Mat Fac Was Fac Fac DSF Fac Upp Upp Total Allies 9 | . . 1 1 . 4 . . . . 3 . . Largest Group 2 | . . 1 1 1 2 . . . . 2 . . Highest-Rated Group 50 | . . 10 31 31 50 . . . . 26 . . Highest-Rated Ally 31 | . . 10 31 31 26 . . . . 26 . . Total Orders . | . . . . . . . . . . . . . Ally Attacks 4 | . . . . 4 . . . . . . . . Total Damage 41 | . . . . 41 . . . . . . . . Kills . | . . . . . . . . . . . . . Allies Corrupted . | . . . . . . . . . . . . . Allies Melted . | . . . . . . . . . . . . . Intel | -11 -10 -9 -9 -8 -7 -7 -7 -6 -6 -5 -5 -5 ------- Run | Yrd Mat Mat Min Mat Fac Was Fac Fac DSF Fac Upp Upp Active Infowar (turns) 1691 | 28 500 884 . . . . 2 . . 20 191 66 Traps 277 | . . . . . . . . . . 20 191 66 Seismic 612 | 28 500 84 . . . . . . . . . . Jamming 2 | . . . . . . . 2 . . . . . ECM 800 | . . 800 . . . . . . . . . . Robot Analysis Total 2 | . 1 1 . . . . . . . . . . Derelict Logs Recovered 2 | . . . 2 . . . . . . . . . Drone Launches . | . . . . . . . . . . . . . Drone Recoveries . | . . . . . . . . . . . . . Exploration | -11 -10 -9 -9 -8 -7 -7 -7 -6 -6 -5 -5 -5 ------------- Run | Yrd Mat Mat Min Mat Fac Was Fac Fac DSF Fac Upp Upp Turns Passed 5536 | 81 500 2086 754 694 397 99 136 9 43 436 198 103 Spaces Moved 5342 | 48 258 897 406 291 991 182 338 17 82 1067 538 227 Core 124 | 14 . 16 . . . . . . . . . 94 Treads 1848 | 34 258 881 406 269 . . . . . . . . Legs . | . . . . . . . . . . . . . Wheels . | . . . . . . . . . . . . . Hover . | . . . . . . . . . . . . . Flight 3370 | . . . . 22 991 182 338 17 82 1067 538 133 Fastest Speed 25 | 50 160 160 170 29 26 28 28 32 28 25 34 34 Average Speed 81 | 127 160 183 170 159 27 28 28 32 28 31 34 42 Slowest Speed 650 | 160 160 650 170 170 115 28 32 32 37 111 37 50 Overloaded Moves . | . . . . . . . . . . . . . Propulsion Burnouts . | . . . . . . . . . . . . . Robots Hopped 32 | . . . . 1 9 . 2 . 1 15 1 3 Potential Cave-ins . | . . . . . . . . . . . . . Cave-ins Triggered 1 | . . 1 . . . . . . . . . . Exploration Rate (%) 43 | 3 48 75 70 28 34 73 14 1 85 33 74 25 Regions Visited 12 Branch Regions 3 Pre-discovered Areas 1 | . . . 1 . . . . . . . . . Known Exits Taken 7 | . . 1 1 1 . . 1 1 . 1 1 . Unknown Exits Taken 2 | 1 1 . . . . . . . . . . . Scrap Searched 2 | . . . . . . . . . . . 2 . Spaces Dug 1 | . . 1 . . . . . . . . . . Terrain Destroyed 224 | . . 26 10 26 114 12 13 . . 23 . . Melee 1 | . . 1 . . . . . . . . . . Projectile . | . . . . . . . . . . . . . AOE 223 | . . 25 10 26 114 12 13 . . 23 . . Terrain Rammed . | . . . . . . . . . . . . . Walls Destroyed . | . . . . . . . . . . . . . Machines Disabled . | . . . . . . . . . . . . . Actions | -11 -10 -9 -9 -8 -7 -7 -7 -6 -6 -5 -5 -5 --------- Run | Yrd Mat Mat Min Mat Fac Was Fac Fac DSF Fac Upp Upp Total 6118 | 65 295 1194 441 394 1096 228 375 19 101 1132 547 231 Wait 280 | . 3 137 1 4 66 39 7 2 . 13 6 2 Move 5268 | 47 257 896 405 288 973 181 333 16 79 1037 535 221 Hop 31 | . . . . 1 9 . 2 . 1 14 1 3 Pick Up 94 | 9 8 29 12 5 8 1 2 . 6 14 . . Fast Attach 42 | . . 9 3 . 9 2 5 . 4 6 3 1 Attach 73 | 7 . 19 2 16 7 1 3 1 3 14 . . Detach 17 | . . 4 . 1 3 . . . 4 4 1 . Swap 10 | . 1 5 . 1 2 . . . . 1 . . Drop 61 | . 1 21 3 1 10 3 7 . 4 9 1 1 Fire 170 | 2 25 73 15 24 9 1 1 . . 20 . . Melee 54 | . . 1 . 53 . . . . . . . . Ram 3 | . . . . . . . . . . . . 3 Kick . | . . . . . . . . . . . . . Crush . | . . . . . . . . . . . . . Escape Stasis 15 | . . . . . . . 15 . . . . . Rewire . | . . . . . . . . . . . . . Trap . | . . . . . . . . . . . . . Miscellaneous . | . . . . . . . . . . . . . Route ------- -11/Scrapyard -10/Materials (discovered 2 exits: *Mat / [*Min]) -9/Materials (discovered 4 exits: *Mat x2 / *Min x2) -9/Mines -8/Materials (discovered 2 exits: *Fac x2) -7/Factory (discovered 2 exits: *Fac / [*Low]) -7/Waste -7/Factory -6/Factory -6/DSF -5/Factory (discovered 4 exits: *Upp x2 / Ext x2) -5/Upper Caves -5/Upper Caves History --------- Turn | Location | Event 6 | -11/Scrapyard | Discovered new exit (range 15) 82 | -11/Scrapyard | Entered Materials 311 | -10/Materials | Build established: Mutant 316 | -10/Materials | Discovered new exit (range 13) 506 | -10/Materials | Discovered new exit (range 16) 582 | -10/Materials | Entered another Materials area 582 | -9/Materials | Evolved 2 slots: Utility x2 698 | -9/Materials | Destroyed 7 combat bots 814 | -9/Materials | Crushed by falling debris 814 | -9/Materials | System corruption reached 10% 1352 | -9/Materials | Identified exit to Mines 1527 | -9/Materials | Discovered new exit (range 12) 2297 | -9/Materials | Discovered new exit (range 16) 2668 | -9/Materials | Entered Mines 2678 | -9/Mines | Core integrity fell below 50% 2690 | -9/Mines | Met a Derelict bent on vengeance 2810 | -9/Mines | Learned Materials non-interactive machine intel 2825 | -9/Mines | Build established: Scavenger-Mutant 2829 | -9/Mines | Learned location of Zion (-6) 2832 | -9/Mines | Found the Drone Emporium 2866 | -9/Mines | Found Prototype Device 2866 | -9/Mines | Identified Bomb Drone Bay 3251 | -9/Mines | Received a Mining Laser from a helpful Derelict 3408 | -9/Mines | Discovered new exit (range 5) 3415 | -9/Mines | Identified exit to Materials 3422 | -9/Mines | Entered Materials 3422 | -8/Materials | Accompanied by 1 ally 3422 | -8/Materials | Evolved 2 slots: Propulsion x1, Utility x1 3423 | -8/Materials | Loaded intel: 42 non-interactive machine locations 3612 | -8/Materials | Lost 5 parts (1n1u3w) 3758 | -8/Materials | Discovered new exit (range 16) 3768 | -8/Materials | Build established: Hacker-Mutant 4029 | -8/Materials | Discovered new exit (range 11) 4068 | -8/Materials | Core integrity fell below 50% 4115 | -8/Materials | Core integrity fell below 20% 4116 | -8/Materials | Identified exit to Factory 4116 | -8/Materials | Entered Factory 4116 | -7/Factory | Evolved 2 slots: Propulsion x1, Utility x1 4137 | -7/Factory | Lost 8 parts (1p3n2u2w) 4263 | -7/Factory | Fabricated Thunder Leg? 4300 | -7/Factory | Central database locked down 4309 | -7/Factory | Discovered new exit (range 5) 4310 | -7/Factory | Identified exit to Factory 4330 | -7/Factory | Discovered new exit (range 16) 4415 | -7/Factory | Build established: Hacker-Sprinter 4513 | -7/Factory | Sucked down chute 4513 | -7/Factory | Entered Waste 4518 | -7/Waste | Spotted C-40 Crusher 4528 | -7/Waste | EMP discharged 4528 | -7/Waste | System corruption reached 10% 4536 | -7/Waste | Spotted C-40 Crusher 4537 | -7/Waste | Spotted C-40 Crusher 4538 | -7/Waste | Spotted C-40 Crusher 4542 | -7/Waste | Spotted C-40 Crusher 4581 | -7/Waste | Destroyed C-40 Crusher 4601 | -7/Waste | Spotted C-40 Crusher 4603 | -7/Waste | Discovered new exit (range 11) 4606 | -7/Waste | Identified exit to Factory 4612 | -7/Waste | Entered Factory 4727 | -7/Factory | Discovered exit to Factory (range 15) 4748 | -7/Factory | Entered another Factory area 4748 | -6/Factory | Evolved 2 slots: Propulsion x1, Utility x1 4757 | -6/Factory | Identified exit to DSF 4757 | -6/Factory | Entered DSF 4777 | -6/DSF | Lost 4 parts (1p2n1u) 4795 | -6/DSF | Discovered new exit (range 14) 4798 | -6/DSF | Additional patrols routed to DSF 4800 | -6/DSF | Identified exit to Factory 4800 | -6/DSF | Entered Factory 4800 | -5/Factory | Evolved 2 slots: Power x1, Propulsion x1 4847 | -5/Factory | Fabricated T-07 Excavator? 4922 | -5/Factory | Identified exit to Upper Caves 4922 | -5/Factory | Identified exit to Extension 5049 | -5/Factory | Lost 4 parts (1n2u1w) 5150 | -5/Factory | Watched by a mysterious "MATRIX" hacker 5199 | -5/Factory | Fabricated Enh. Hardcell Cannon? 5236 | -5/Factory | Entered Upper Caves 5244 | -5/Upper Caves | Lost 3 parts (1n1u1w) 5426 | -5/Upper Caves | Attracted the attention of an 0b10 checkpoint 5431 | -5/Upper Caves | Discovered new exit (range 9) 5433 | -5/Upper Caves | Identified exit to Upper Caves 5434 | -5/Upper Caves | Entered another Upper Caves area 5436 | -5/Upper Caves | Attracted the attention of an 0b10 checkpoint 5500 | -5/Upper Caves | Core integrity fell below 50% 5513 | -5/Upper Caves | Core integrity fell below 20% 5537 | -5/Upper Caves | Destroyed by G-50 Soldier with Heavy Laser Last Messages --------------- Y-64 Sentinel: "INTERCEPTING UNREGISTERED DERELICT." Slug penetrates Wall. Nuclear Pulse Thruster+ destroyed. Disruptor Cannon destroyed. Imp. Hacking Suite destroyed. Lgt. Nuclear Core+ destroyed. Xenon Bombardment Thruster+ destroyed. Dropped Nuclear Pulse Array. Acquired 62 matter. Imp. Trap Scanner destroyed. Slammed into S-27 Virus. S-27 Virus destroyed. Slammed into S-27 Virus. Hacking Suite destroyed. Acquired Nuclear Pulse Array. Nuclear Pulse Array destroyed. System Shield destroyed. [Achievement: Just Browsing] [Achievement: Achiever] Map ----- +----------------------------------------------------+ | ?????????????????????????????????????# #?????? | | ?????????????????????????????????????# """ #?????? | | ????????????????????????????????????## """ #?????? | | ???????????????????????????????????## """ #?????? | | ???????????????????????????????????# """ #?????? | | ??????????????????#?????????????????# ##????# | | ?????????????????## ?????????????????# ###### | | ?????????????????# ?###?????####?#### | | ????????????????## ## #???## ### ## # | | ????????????????# #??## ## ##### | | ????????????????# #### #???# | | ?????????????????# ## #???# | | ??????????????????# #### ## | | ???????????????????# ## #?? ?# | | ???????????????????# ### # | | ???????????????????# #?# # | | ???????????????????# #?# ## ###### | | ???????????????????# ### ### #?# ##????# | | ???????????????? #??# ## #?? #????? | | ???????????????#######??## #### #?? #??? | | ???????????????????????## #######?? #?## | | ???????????????????????# ##?????? #??## | | ???????????????????????# #### #??# | | ???????????????????????## ## ??? | | ????????????????????###### ##? ???? | | ????????????????????# @ #?????????? | | ????????????????????# #????????? | | ????????????????????# #### #???????? | | ?????????????????#### #??#### ????????? | | ????????????????## # #?????? g ????????? | | ????????????????# # #??????# ????????? | | ?????????????????# # #???????# # *% ?????????? | | ?????????????????# ###?????# ##### ?????????? | | ?????????????????### #####?# #??????????????? | | ???????????????????## ### #??????????????? | | ????????????????????# ## ##?????????????? | | ????????????????????# ## #?# #?????????????? | | ????????????????????# ## ### #?????????????? | | ???????????????????## #??????????????? | | ???????????????????# #### #??????????????? | | ??????????????????# % #### #??????????????? | | ??????????????????## ######## #??????????????? | | ???????????????????######### #??????????????? | | ?????????????????????# #??????????????? | | ?????????????????????# ##??????????????? | | ?????????????????????# ### #???????????????? | | ?????????????????????# ## #???????????????? | | ?????????????????????# ## #???????????????? | | ?????????????????????# ## ### #???????????????? | | ?????????????????????# ### #?# #???????????????? | +----------------------------------------------------+ Best States ------------- Heat Dissipation 40 Energy Generation 26 Energy Capacity 250 Matter Stores 325 Matter Capacity 450 Sight Range 16 Terrain Scan Density 10 ECM Strength 1 Additional Mass Support 9 Armor Coverage 225 Evasion (%) 71 Targeting Accuracy 5 Recoil Reduction 3 Kinecelleration 30 Offensive Hacking 36 Defensive Hacking 34 Item Schematics ----------------- Adv. System Restoration Module | -5/Factory | Scanalyzed Robot Schematics ------------------ None Fabricated ------------ Thunder Leg | x2 | -7/Factory | Preloaded T-07 Excavator | x2 | -5/Factory | Preloaded Enh. Hardcell Cannon | x2 | -5/Factory | Preloaded Repaired ---------- Nothing Studied --------- VTOL Module | -7/Factory | Hacked Lgt. Nuclear Core | -5/Factory | Hacked Mic. Nuclear Core | -5/Factory | Hacked Nuclear Pulse Thruster | -5/Factory | Hacked Xenon Bombardment Thruster | -5/Factory | Hacked Variable Charge Gun | -5/Factory | Hacked Tesla Rifle | -5/Factory | Hacked Alien Tech Used ----------------- None Achievements -------------- Achiever Ew, Corruption Hammer Time Just Browsing Recruitment Drive Remodeling Challenges ------------ None Game ------ Seed SeismicGravityDisplacer Manual? 0 Play Time 01:20:12 Cumulative 18.0 hours Start 2026.06.26 @ 09:54:32 End 2026.06.26 @ 11:13:41 Sessions 1 Manual Loads 0 Difficulty Rogue Special Mode None Game No. 15 Rogue 14 Adventurer 1 Explorer 0 Win Type - Total 0 Types 0/0/0/0/0/0/0/0/0/0 Lore% 17 Gallery% 25 Achievement% 25 Wizard Run 0 Options --------- Layout 1 ASCII 0 Keyboard 0 Movement Numpad Keybinds 0 Fullscreen 1 Font 32/SmallcapsGlow Map View 50x35 Zoom Use 0% Tactical HUD 0 Map Filters NONE Filters NONE Steam 1 RUN: 1929b8ed-93a9-46a5-b03c-d9327470406e